[Event "Titled Tuesday Blitz April 25 Early 2023"]
[White "Javakhadze, Zurab"]
[Black "Sharapov, Evgeny"]
[WhiteFideId "13603647"]
[BlackFideId "14103133"]
[WhiteElo "2381"]
[BlackElo "2367"]
[Result "1-0"]
[Round "04"]
[TimeControl "180+2"]
[Date "2023.04.25"]
[WhiteClock "0:00:11"]
[BlackClock "0:00:18"]

1. Nf3 {[%clk 0:03:00]}  c5 {[%clk 0:02:59]} 2. g3 {[%clk 0:02:57]}  Nc6 {[%clk 0:02:58]} 3. Bg2 {[%clk 0:02:58]}  e5 {[%clk 0:02:58]} 4. O-O {[%clk 0:02:57]}  g6 {[%clk 0:02:58]} 5. e4 {[%clk 0:02:52]}  Bg7 {[%clk 0:02:58]} 6. d3 {[%clk 0:02:53]}  Nge7 {[%clk 0:02:58]} 7. Nc3 {[%clk 0:02:53]}  d6 {[%clk 0:02:58]} 8. Nd2 {[%clk 0:02:53]}  O-O {[%clk 0:02:58]} 9. Nc4 {[%clk 0:02:54]}  Be6 {[%clk 0:02:55]} 10. f4 {[%clk 0:02:48]}  exf4 {[%clk 0:02:55]} 11. Bxf4 {[%clk 0:02:47]}  d5 {[%clk 0:02:55]} 12. exd5 {[%clk 0:02:41]}  Nxd5 {[%clk 0:02:55]} 13. Nxd5 {[%clk 0:02:35]}  Bxd5 {[%clk 0:02:55]} 14. Bd6 {[%clk 0:02:34]}  Bxg2 {[%clk 0:02:47]} 15. Kxg2 {[%clk 0:02:33]}  Re8 {[%clk 0:02:44]} 16. Qf3 {[%clk 0:02:33]}  Qd7 {[%clk 0:02:28]} 17. Bxc5 {[%clk 0:02:29]}  Nd4 {[%clk 0:02:19]} 18. Bxd4 {[%clk 0:02:22]}  Bxd4 {[%clk 0:02:18]} 19. Rae1 {[%clk 0:01:57]}  f5 {[%clk 0:02:01]} 20. c3 {[%clk 0:01:45]}  Bg7 {[%clk 0:02:01]} 21. d4 {[%clk 0:01:45]}  Rac8 {[%clk 0:01:55]} 22. Nd2 {[%clk 0:01:00]}  Bh6 {[%clk 0:01:48]} 23. Nb3 {[%clk 0:00:55]}  b6 {[%clk 0:01:48]} 24. Nc1 {[%clk 0:00:50]}  Bxc1 {[%clk 0:01:35]} 25. Rxe8+ {[%clk 0:00:47]}  Rxe8 {[%clk 0:01:35]} 26. Rxc1 {[%clk 0:00:48]}  Re4 {[%clk 0:01:31]} 27. Kf2 {[%clk 0:00:38]}  Qe6 {[%clk 0:01:22]} 28. b3 {[%clk 0:00:33]}  h5 {[%clk 0:01:05]} 29. Rc2 {[%clk 0:00:32]}  b5 {[%clk 0:00:42]} 30. Re2 {[%clk 0:00:30]}  Qd5 {[%clk 0:00:37]} 31. Rxe4 {[%clk 0:00:28]}  fxe4 {[%clk 0:00:37]} 32. Qf6 {[%clk 0:00:26]}  Qf5+ {[%clk 0:00:29]} 33. Qxf5 {[%clk 0:00:23]}  gxf5 {[%clk 0:00:30]} 34. c4 {[%clk 0:00:14]}  bxc4 {[%clk 0:00:22]} 35. bxc4 {[%clk 0:00:13]}  Kf7 {[%clk 0:00:23]} 36. Ke3 {[%clk 0:00:14]}  Ke6 {[%clk 0:00:23]} 37. Kf4 {[%clk 0:00:12]}  Kd6 {[%clk 0:00:21]} 38. h3 {[%clk 0:00:11]}  Kc6 {[%clk 0:00:21]} 39. g4 {[%clk 0:00:09]}  fxg4 {[%clk 0:00:21]} 40. hxg4 {[%clk 0:00:09]}  hxg4 {[%clk 0:00:16]} 41. Kxg4 {[%clk 0:00:08]}  Kb6 {[%clk 0:00:16]} 42. Kf4 {[%clk 0:00:08]}  Ka5 {[%clk 0:00:17]} 43. Kxe4 {[%clk 0:00:07]}  Kb4 {[%clk 0:00:17]} 44. c5 {[%clk 0:00:08]}  Kb5 {[%clk 0:00:16]} 45. Kd5 {[%clk 0:00:08]}  a5 {[%clk 0:00:16]} 46. c6 {[%clk 0:00:09]}  Kb6 {[%clk 0:00:17]} 47. Kd6 {[%clk 0:00:09]}  Kb5 {[%clk 0:00:17]} 48. c7 {[%clk 0:00:10]}  Kb4 {[%clk 0:00:18]} 49. c8=Q {[%clk 0:00:11]}  Ka3 {[%clk 0:00:18]} 50. Qc3+ {[%clk 0:00:08]}  Kxa2 {[%clk 0:00:18]} 51. Kc5 {[%clk 0:00:09]}  a4 {[%clk 0:00:18]} 52. Kb4 {[%clk 0:00:09]}  a3 {[%clk 0:00:19]} 53. Qxa3+ {[%clk 0:00:09]}  Kb1 {[%clk 0:00:19]} 54. Qe3 {[%clk 0:00:09]}  Kc2 {[%clk 0:00:19]} 55. Qe2+ {[%clk 0:00:10]}  Kc1 {[%clk 0:00:18]} 56. Kc3 {[%clk 0:00:11]} 1-0


[Site "https://www.chess.com"]

[Event "Titled Tuesday Blitz April 25 Early 2023"]
[White "Nevednichy, Vladislav"]
[Black "The_Sherman_Variation"]
[WhiteFideId "1205730"]
[WhiteElo "2370"]
[BlackElo "2513"]
[Result "0-1"]
[Round "04"]
[TimeControl "180+2"]
[Date "2023.04.25"]
[WhiteClock "0:02:15"]
[BlackClock "0:02:30"]

1. d4 {[%clk 0:03:00]}  Nf6 {[%clk 0:02:53]} 2. Nf3 {[%clk 0:03:00]}  e6 {[%clk 0:02:52]} 3. Bg5 {[%clk 0:03:01]}  Be7 {[%clk 0:02:51]} 4. Bxf6 {[%clk 0:03:00]}  Bxf6 {[%clk 0:02:52]} 5. e4 {[%clk 0:03:00]}  d5 {[%clk 0:02:49]} 6. e5 {[%clk 0:03:00]}  Be7 {[%clk 0:02:50]} 7. c3 {[%clk 0:03:00]}  c5 {[%clk 0:02:50]} 8. Bd3 {[%clk 0:02:59]}  Nc6 {[%clk 0:02:50]} 9. h4 {[%clk 0:02:55]}  Qb6 {[%clk 0:02:48]} 10. Qb3 {[%clk 0:02:48]}  c4 {[%clk 0:02:44]} 11. Qxb6 {[%clk 0:02:47]}  axb6 {[%clk 0:02:45]} 12. Bc2 {[%clk 0:02:44]}  b5 {[%clk 0:02:46]} 13. h5 {[%clk 0:02:27]}  h6 {[%clk 0:02:41]} 14. Ke2 {[%clk 0:02:24]}  b4 {[%clk 0:02:40]} 15. g4 {[%clk 0:02:19]}  b3 {[%clk 0:02:33]} 16. Bd1 {[%clk 0:02:15]}  Rxa2 {[%clk 0:02:30]} 0-1


[Site "https://www.chess.com"]

[Event "Titled Tuesday Blitz April 25 Early 2023"]
[White "Salimova, Nurgyul"]
[Black "Bagrationi, Alexander"]
[WhiteFideId "2915138"]
[BlackFideId "14104954"]
[WhiteElo "2314"]
[BlackElo "2398"]
[Result "0-1"]
[Round "04"]
[TimeControl "180+2"]
[Date "2023.04.25"]
[WhiteClock "0:00:14"]
[BlackClock "0:00:24"]

1. d4 {[%clk 0:03:00]}  f5 {[%clk 0:02:47]} 2. Nc3 {[%clk 0:02:59]}  Nf6 {[%clk 0:02:47]} 3. Bg5 {[%clk 0:02:57]}  d5 {[%clk 0:02:47]} 4. Bxf6 {[%clk 0:02:57]}  exf6 {[%clk 0:02:47]} 5. e3 {[%clk 0:02:56]}  Be6 {[%clk 0:02:42]} 6. Bd3 {[%clk 0:02:55]}  c6 {[%clk 0:02:38]} 7. h4 {[%clk 0:02:53]}  h5 {[%clk 0:02:34]} 8. Nge2 {[%clk 0:02:50]}  g6 {[%clk 0:02:32]} 9. Nf4 {[%clk 0:02:48]}  Bf7 {[%clk 0:02:32]} 10. Nce2 {[%clk 0:02:27]}  Bd6 {[%clk 0:02:27]} 11. Qd2 {[%clk 0:02:25]}  Nd7 {[%clk 0:02:25]} 12. O-O-O {[%clk 0:02:21]}  Qe7 {[%clk 0:02:13]} 13. g4 {[%clk 0:02:02]}  hxg4 {[%clk 0:02:08]} 14. h5 {[%clk 0:02:02]}  gxh5 {[%clk 0:01:55]} 15. Bxf5 {[%clk 0:02:00]}  O-O-O {[%clk 0:01:46]} 16. Rdg1 {[%clk 0:01:19]}  Rdg8 {[%clk 0:01:38]} 17. Qd3 {[%clk 0:01:11]}  Kb8 {[%clk 0:01:30]} 18. Ng6 {[%clk 0:01:08]}  Bxg6 {[%clk 0:00:49]} 19. Bxg6 {[%clk 0:01:09]}  f5 {[%clk 0:00:50]} 20. Bxf5 {[%clk 0:00:56]}  Nf6 {[%clk 0:00:50]} 21. c4 {[%clk 0:00:41]}  dxc4 {[%clk 0:00:45]} 22. Qxc4 {[%clk 0:00:41]}  h4 {[%clk 0:00:37]} 23. Qd3 {[%clk 0:00:13]}  a6 {[%clk 0:00:30]} 24. e4 {[%clk 0:00:13]}  Bc7 {[%clk 0:00:28]} 25. e5 {[%clk 0:00:13]}  Nd5 {[%clk 0:00:26]} 26. Rxg4 {[%clk 0:00:13]}  Rxg4 {[%clk 0:00:25]} 27. Bxg4 {[%clk 0:00:14]}  Qg5+ {[%clk 0:00:24]} 0-1


[Site "https://www.chess.com"]

[Event "Titled Tuesday Blitz April 25 Early 2023"]
[White "Roebers, Eline"]
[Black "Vetoshko, Volodymyr"]
[WhiteFideId "1058401"]
[BlackFideId "14122480"]
[WhiteElo "2511"]
[BlackElo "2422"]
[Result "0-1"]
[Round "04"]
[TimeControl "180+2"]
[Date "2023.04.25"]
[WhiteClock "0:00:17"]
[BlackClock "0:00:04"]

1. e4 {[%clk 0:03:00]}  c5 {[%clk 0:02:59]} 2. Nf3 {[%clk 0:03:01]}  e6 {[%clk 0:02:59]} 3. d4 {[%clk 0:03:01]}  cxd4 {[%clk 0:03:00]} 4. Nxd4 {[%clk 0:03:02]}  a6 {[%clk 0:02:58]} 5. Bd3 {[%clk 0:03:00]}  Bc5 {[%clk 0:02:57]} 6. Nb3 {[%clk 0:03:00]}  Ba7 {[%clk 0:02:57]} 7. Qe2 {[%clk 0:03:00]}  Ne7 {[%clk 0:02:54]} 8. Be3 {[%clk 0:03:00]}  Nbc6 {[%clk 0:02:54]} 9. Bxa7 {[%clk 0:02:59]}  Rxa7 {[%clk 0:02:55]} 10. Qe3 {[%clk 0:02:59]}  O-O {[%clk 0:02:50]} 11. O-O {[%clk 0:02:57]}  b5 {[%clk 0:02:40]} 12. a4 {[%clk 0:02:55]}  b4 {[%clk 0:02:33]} 13. a5 {[%clk 0:02:52]}  d5 {[%clk 0:02:19]} 14. N1d2 {[%clk 0:02:44]}  e5 {[%clk 0:01:57]} 15. f4 {[%clk 0:02:19]}  f5 {[%clk 0:01:49]} 16. exd5 {[%clk 0:02:12]}  Nxd5 {[%clk 0:01:49]} 17. Bc4 {[%clk 0:02:12]}  Be6 {[%clk 0:01:25]} 18. Qe2 {[%clk 0:01:51]}  e4 {[%clk 0:01:01]} 19. Nf3 {[%clk 0:01:40]}  Nxf4 {[%clk 0:00:38]} 20. Bxe6+ {[%clk 0:01:39]}  Nxe6 {[%clk 0:00:39]} 21. Qc4 {[%clk 0:01:40]}  Qc8 {[%clk 0:00:38]} 22. Ng5 {[%clk 0:01:27]}  Nd4 {[%clk 0:00:36]} 23. Qxc8 {[%clk 0:01:24]}  Rxc8 {[%clk 0:00:37]} 24. Nxe6 {[%clk 0:01:17]}  Nxe6 {[%clk 0:00:38]} 25. Rxf5 {[%clk 0:01:15]}  Rxc2 {[%clk 0:00:37]} 26. Re1 {[%clk 0:01:06]}  Rxb2 {[%clk 0:00:23]} 27. Rxe4 {[%clk 0:00:58]}  Rxb3 {[%clk 0:00:12]} 28. Rxe6 {[%clk 0:00:57]}  h6 {[%clk 0:00:11]} 29. Rb6 {[%clk 0:00:53]}  Rb1+ {[%clk 0:00:05]} 30. Kf2 {[%clk 0:00:53]}  Rb2+ {[%clk 0:00:05]} 31. Kg3 {[%clk 0:00:52]}  Kh7 {[%clk 0:00:02]} 32. Rf4 {[%clk 0:00:49]}  Rc7 {[%clk 0:00:01]} 33. Kh3 {[%clk 0:00:41]}  Rc3+ {[%clk 0:00:02]} 34. g3 {[%clk 0:00:42]}  Rcc2 {[%clk 0:00:03]} 35. Rfxb4 {[%clk 0:00:39]}  Rxh2+ {[%clk 0:00:03]} 36. Kg4 {[%clk 0:00:40]}  Rxb4+ {[%clk 0:00:03]} 37. Rxb4 {[%clk 0:00:41]}  Ra2 {[%clk 0:00:03]} 38. Rb7 {[%clk 0:00:38]}  Ra4+ {[%clk 0:00:03]} 39. Kh3 {[%clk 0:00:36]}  Rxa5 {[%clk 0:00:04]} 40. g4 {[%clk 0:00:37]}  Ra3+ {[%clk 0:00:03]} 41. Kh4 {[%clk 0:00:37]}  Ra4 {[%clk 0:00:03]} 42. Ra7 {[%clk 0:00:34]}  Ra1 {[%clk 0:00:03]} 43. Kg3 {[%clk 0:00:31]}  Ra3+ {[%clk 0:00:03]} 44. Kh4 {[%clk 0:00:31]}  a5 {[%clk 0:00:04]} 45. g5 {[%clk 0:00:27]}  hxg5+ {[%clk 0:00:03]} 46. Kxg5 {[%clk 0:00:28]}  Ra1 {[%clk 0:00:04]} 47. Ra6 {[%clk 0:00:26]}  a4 {[%clk 0:00:04]} 48. Kg4 {[%clk 0:00:24]}  a3 {[%clk 0:00:05]} 49. Kg3 {[%clk 0:00:24]}  g6 {[%clk 0:00:04]} 50. Kg2 {[%clk 0:00:24]}  Kh6 {[%clk 0:00:04]} 51. Ra5 {[%clk 0:00:21]}  g5 {[%clk 0:00:05]} 52. Ra4 {[%clk 0:00:21]}  Kh5 {[%clk 0:00:05]} 53. Ra8 {[%clk 0:00:20]}  Kg4 {[%clk 0:00:05]} 54. Rf8 {[%clk 0:00:19]}  Rb1 {[%clk 0:00:03]} 55. Ra8 {[%clk 0:00:18]}  Rb2+ {[%clk 0:00:03]} 56. Kf1 {[%clk 0:00:16]}  a2 {[%clk 0:00:03]} 57. Ra4+ {[%clk 0:00:17]}  Kh5 {[%clk 0:00:03]} 58. Ra5 {[%clk 0:00:17]}  Rb1+ {[%clk 0:00:04]} 0-1


[Site "https://www.chess.com"]

[Event "Titled Tuesday Blitz April 25 Early 2023"]
[White "Skvortsov, Andrei"]
[Black "Dixit, Nikhil"]
[WhiteFideId "24108600"]
[BlackFideId "5059534"]
[WhiteElo "2259"]
[BlackElo "2207"]
[Result "0-1"]
[Round "04"]
[TimeControl "180+2"]
[Date "2023.04.25"]
[WhiteClock "0:00:24"]
[BlackClock "0:00:21"]

1. e4 {[%clk 0:03:00]}  c5 {[%clk 0:02:52]} 2. d4 {[%clk 0:03:00]}  cxd4 {[%clk 0:02:52]} 3. Qxd4 {[%clk 0:03:01]}  Nc6 {[%clk 0:02:51]} 4. Qd3 {[%clk 0:03:01]}  g6 {[%clk 0:02:52]} 5. Nc3 {[%clk 0:03:01]}  Bg7 {[%clk 0:02:52]} 6. Nf3 {[%clk 0:03:02]}  Nf6 {[%clk 0:02:49]} 7. Be2 {[%clk 0:03:02]}  O-O {[%clk 0:02:49]} 8. O-O {[%clk 0:03:02]}  d6 {[%clk 0:02:48]} 9. Nd5 {[%clk 0:03:03]}  Nxd5 {[%clk 0:02:40]} 10. exd5 {[%clk 0:03:04]}  Nb4 {[%clk 0:02:36]} 11. Qd1 {[%clk 0:03:02]}  Bf5 {[%clk 0:02:32]} 12. c3 {[%clk 0:03:00]}  Nc2 {[%clk 0:02:24]} 13. g4 {[%clk 0:03:00]}  Nxa1 {[%clk 0:01:52]} 14. gxf5 {[%clk 0:02:59]}  Qa5 {[%clk 0:01:45]} 15. a4 {[%clk 0:02:58]}  Qb6 {[%clk 0:01:38]} 16. Bb5 {[%clk 0:02:56]}  a6 {[%clk 0:01:31]} 17. Be3 {[%clk 0:02:52]}  Qa5 {[%clk 0:01:16]} 18. Be2 {[%clk 0:02:51]}  b5 {[%clk 0:01:05]} 19. Qxa1 {[%clk 0:02:49]}  bxa4 {[%clk 0:01:05]} 20. Qa2 {[%clk 0:02:48]}  Rfb8 {[%clk 0:01:01]} 21. b4 {[%clk 0:02:44]}  Qc7 {[%clk 0:00:58]} 22. Rc1 {[%clk 0:02:37]}  Qd7 {[%clk 0:00:42]} 23. Bd3 {[%clk 0:02:33]}  Rc8 {[%clk 0:00:39]} 24. Bd4 {[%clk 0:02:26]}  gxf5 {[%clk 0:00:33]} 25. Bxg7 {[%clk 0:02:25]}  Kxg7 {[%clk 0:00:34]} 26. Nd4 {[%clk 0:02:26]}  Kh8 {[%clk 0:00:31]} 27. Bxf5 {[%clk 0:02:24]}  Rg8+ {[%clk 0:00:32]} 28. Kh1 {[%clk 0:02:23]}  Qb7 {[%clk 0:00:31]} 29. Be4 {[%clk 0:02:16]}  Rg4 {[%clk 0:00:30]} 30. Bf3 {[%clk 0:02:15]}  Rg6 {[%clk 0:00:28]} 31. Qxa4 {[%clk 0:02:11]}  Rag8 {[%clk 0:00:28]} 32. Rf1 {[%clk 0:02:08]}  Qc8 {[%clk 0:00:27]} 33. Be4 {[%clk 0:00:35]}  Qh3 {[%clk 0:00:23]} 34. Qd1 {[%clk 0:00:24]}  Qxh2+ {[%clk 0:00:21]} 0-1


[Site "https://www.chess.com"]

[Event "Titled Tuesday Blitz April 25 Early 2023"]
[White "Heinemann, Josefine"]
[Black "Jaracz, Pawel"]
[WhiteFideId "12900460"]
[BlackFideId "1102222"]
[WhiteElo "2342"]
[BlackElo "2438"]
[Result "0-1"]
[Round "04"]
[TimeControl "180+2"]
[Date "2023.04.25"]
[WhiteClock "0:00:05"]
[BlackClock "0:00:12"]

1. Nf3 {[%clk 0:03:00]}  c5 {[%clk 0:02:58]} 2. c4 {[%clk 0:02:58]}  Nc6 {[%clk 0:02:57]} 3. Nc3 {[%clk 0:02:57]}  e6 {[%clk 0:02:50]} 4. d4 {[%clk 0:02:56]}  cxd4 {[%clk 0:02:50]} 5. Nxd4 {[%clk 0:02:56]}  a6 {[%clk 0:02:44]} 6. g3 {[%clk 0:02:53]}  Ne5 {[%clk 0:02:43]} 7. Bg2 {[%clk 0:02:50]}  Qc7 {[%clk 0:02:43]} 8. O-O {[%clk 0:02:50]}  Nf6 {[%clk 0:02:42]} 9. Bf4 {[%clk 0:02:25]}  d6 {[%clk 0:02:42]} 10. b3 {[%clk 0:02:21]}  Bd7 {[%clk 0:02:39]} 11. Rc1 {[%clk 0:02:21]}  Be7 {[%clk 0:02:39]} 12. Qd2 {[%clk 0:02:10]}  O-O {[%clk 0:02:38]} 13. h3 {[%clk 0:02:09]}  Rfd8 {[%clk 0:02:38]} 14. Rfd1 {[%clk 0:02:06]}  Rac8 {[%clk 0:02:35]} 15. e4 {[%clk 0:02:03]}  Be8 {[%clk 0:02:34]} 16. Be3 {[%clk 0:02:02]}  Ng6 {[%clk 0:02:26]} 17. Kh2 {[%clk 0:01:55]}  h5 {[%clk 0:02:25]} 18. f4 {[%clk 0:01:52]}  Qb8 {[%clk 0:02:16]} 19. Nf3 {[%clk 0:01:37]}  Bc6 {[%clk 0:02:13]} 20. Ng5 {[%clk 0:01:35]}  b5 {[%clk 0:02:03]} 21. cxb5 {[%clk 0:01:33]}  axb5 {[%clk 0:02:03]} 22. a4 {[%clk 0:01:24]}  bxa4 {[%clk 0:02:00]} 23. bxa4 {[%clk 0:01:25]}  Qa8 {[%clk 0:01:59]} 24. Qa2 {[%clk 0:01:14]}  d5 {[%clk 0:01:44]} 25. e5 {[%clk 0:00:58]}  Nd7 {[%clk 0:01:32]} 26. Nf3 {[%clk 0:00:57]}  Nc5 {[%clk 0:01:25]} 27. a5 {[%clk 0:00:46]}  h4 {[%clk 0:01:18]} 28. g4 {[%clk 0:00:42]}  d4 {[%clk 0:01:03]} 29. Nxd4 {[%clk 0:00:39]}  Bxg2 {[%clk 0:01:02]} 30. Qxg2 {[%clk 0:00:39]}  Qa6 {[%clk 0:00:17]} 31. Qa2 {[%clk 0:00:18]}  Nd3 {[%clk 0:00:13]} 32. Rc2 {[%clk 0:00:13]}  Nb4 {[%clk 0:00:13]} 33. Qa1 {[%clk 0:00:04]}  Nxc2 {[%clk 0:00:13]} 34. Nxc2 {[%clk 0:00:05]}  Rxd1 {[%clk 0:00:13]} 35. Qxd1 {[%clk 0:00:05]}  Rxc3 {[%clk 0:00:12]} 0-1


[Site "https://www.chess.com"]

[Event "Titled Tuesday Blitz April 25 Early 2023"]
[White "Santos Flores, Alberto"]
[Black "Antal, Gergely"]
[WhiteFideId "3601234"]
[BlackFideId "717312"]
[WhiteElo "2235"]
[BlackElo "2471"]
[Result "1/2-1/2"]
[Round "04"]
[TimeControl "180+2"]
[Date "2023.04.25"]
[WhiteClock "0:00:15"]
[BlackClock "0:00:18"]

1. d4 {[%clk 0:03:00]}  f5 {[%clk 0:02:57]} 2. g3 {[%clk 0:02:59]}  Nf6 {[%clk 0:02:57]} 3. Bg2 {[%clk 0:02:59]}  g6 {[%clk 0:02:58]} 4. Nf3 {[%clk 0:02:58]}  Bg7 {[%clk 0:02:59]} 5. O-O {[%clk 0:02:58]}  O-O {[%clk 0:02:59]} 6. c4 {[%clk 0:02:58]}  d6 {[%clk 0:03:00]} 7. Nc3 {[%clk 0:02:52]}  c6 {[%clk 0:03:00]} 8. d5 {[%clk 0:02:50]}  e5 {[%clk 0:03:01]} 9. dxe6 {[%clk 0:02:48]}  Bxe6 {[%clk 0:03:01]} 10. b3 {[%clk 0:02:45]}  Qe7 {[%clk 0:03:00]} 11. Bb2 {[%clk 0:02:37]}  Na6 {[%clk 0:03:00]} 12. Qc2 {[%clk 0:02:26]}  Rad8 {[%clk 0:03:00]} 13. Rad1 {[%clk 0:02:24]}  Nc5 {[%clk 0:03:00]} 14. Nd4 {[%clk 0:02:18]}  Bc8 {[%clk 0:03:00]} 15. b4 {[%clk 0:02:17]}  Nce4 {[%clk 0:02:59]} 16. Nxe4 {[%clk 0:02:17]}  fxe4 {[%clk 0:02:59]} 17. e3 {[%clk 0:02:13]}  Rfe8 {[%clk 0:02:50]} 18. Ne2 {[%clk 0:02:11]}  Bg4 {[%clk 0:02:44]} 19. h3 {[%clk 0:02:11]}  Bf3 {[%clk 0:02:45]} 20. Bxf3 {[%clk 0:02:04]}  exf3 {[%clk 0:02:45]} 21. Nd4 {[%clk 0:02:04]}  Qe4 {[%clk 0:02:30]} 22. Qxe4 {[%clk 0:02:03]}  Nxe4 {[%clk 0:02:31]} 23. Ba1 {[%clk 0:01:57]}  Bxd4 {[%clk 0:02:16]} 24. Rxd4 {[%clk 0:01:54]}  a6 {[%clk 0:02:00]} 25. Rfd1 {[%clk 0:01:54]}  b5 {[%clk 0:02:00]} 26. cxb5 {[%clk 0:01:46]}  axb5 {[%clk 0:02:00]} 27. Rc1 {[%clk 0:01:45]}  Rc8 {[%clk 0:02:00]} 28. Bb2 {[%clk 0:01:42]}  d5 {[%clk 0:01:59]} 29. Rd3 {[%clk 0:01:36]}  Nd6 {[%clk 0:01:54]} 30. Bd4 {[%clk 0:01:05]}  Nc4 {[%clk 0:01:54]} 31. Ra1 {[%clk 0:00:55]}  Ra8 {[%clk 0:01:54]} 32. a3 {[%clk 0:00:50]}  Ra6 {[%clk 0:01:52]} 33. g4 {[%clk 0:00:39]}  Rea8 {[%clk 0:01:51]} 34. Kh2 {[%clk 0:00:39]}  Rxa3 {[%clk 0:01:52]} 35. Rdxa3 {[%clk 0:00:39]}  Rxa3 {[%clk 0:01:53]} 36. Rxa3 {[%clk 0:00:39]}  Nxa3 {[%clk 0:01:53]} 37. Kg3 {[%clk 0:00:39]}  Kf7 {[%clk 0:01:35]} 38. Kxf3 {[%clk 0:00:39]}  Ke6 {[%clk 0:01:35]} 39. Ke2 {[%clk 0:00:37]}  Nc4 {[%clk 0:01:35]} 40. f4 {[%clk 0:00:36]}  Nd6 {[%clk 0:01:35]} 41. Kf3 {[%clk 0:00:32]}  Ne4 {[%clk 0:01:35]} 42. h4 {[%clk 0:00:31]}  Nd6 {[%clk 0:00:57]} 43. h5 {[%clk 0:00:27]}  gxh5 {[%clk 0:00:54]} 44. gxh5 {[%clk 0:00:28]}  Kf5 {[%clk 0:00:55]} 45. Be5 {[%clk 0:00:24]}  Ne4 {[%clk 0:00:50]} 46. Bd4 {[%clk 0:00:24]}  Nd2+ {[%clk 0:00:48]} 47. Ke2 {[%clk 0:00:24]}  Nc4 {[%clk 0:00:49]} 48. Kf3 {[%clk 0:00:24]}  Nd6 {[%clk 0:00:20]} 49. Bc5 {[%clk 0:00:24]}  Ne8 {[%clk 0:00:20]} 50. Bd4 {[%clk 0:00:24]}  Nc7 {[%clk 0:00:20]} 51. Bc3 {[%clk 0:00:23]}  Ne6 {[%clk 0:00:19]} 52. Bb2 {[%clk 0:00:21]}  c5 {[%clk 0:00:20]} 53. bxc5 {[%clk 0:00:20]}  Nxc5 {[%clk 0:00:21]} 54. Bc3 {[%clk 0:00:20]}  Na6 {[%clk 0:00:21]} 55. Bd4 {[%clk 0:00:20]}  b4 {[%clk 0:00:21]} 56. Bb2 {[%clk 0:00:16]}  Nc5 {[%clk 0:00:21]} 57. Bd4 {[%clk 0:00:16]}  Na4 {[%clk 0:00:22]} 58. Ke2 {[%clk 0:00:16]}  b3 {[%clk 0:00:23]} 59. Kd2 {[%clk 0:00:16]}  Ke4 {[%clk 0:00:22]} 60. Bg7 {[%clk 0:00:15]}  Nc5 {[%clk 0:00:19]} 61. Kc3 {[%clk 0:00:15]}  b2 {[%clk 0:00:16]} 62. Kxb2 {[%clk 0:00:14]}  Kxe3 {[%clk 0:00:16]} 63. f5 {[%clk 0:00:14]}  Kf4 {[%clk 0:00:14]} 64. f6 {[%clk 0:00:15]}  Ne6 {[%clk 0:00:14]} 65. f7 {[%clk 0:00:14]}  Kg5 {[%clk 0:00:14]} 66. f8=Q {[%clk 0:00:14]}  Nxf8 {[%clk 0:00:14]} 67. Bxf8 {[%clk 0:00:15]}  Kxh5 {[%clk 0:00:15]} 68. Kc3 {[%clk 0:00:15]}  Kg4 {[%clk 0:00:16]} 69. Kd4 {[%clk 0:00:15]}  h5 {[%clk 0:00:16]} 70. Be7 {[%clk 0:00:15]}  h4 {[%clk 0:00:17]} 71. Bxh4 {[%clk 0:00:15]}  Kxh4 {[%clk 0:00:18]} 72. Kxd5 {[%clk 0:00:15]} 1/2-1/2


[Site "https://www.chess.com"]

[Event "Titled Tuesday Blitz April 25 Early 2023"]
[White "Mrudul Dehankar"]
[Black "Lewicki, Miroslaw"]
[WhiteFideId "25096990"]
[BlackFideId "1113380"]
[WhiteElo "2139"]
[BlackElo "2212"]
[Result "0-1"]
[Round "04"]
[TimeControl "180+2"]
[Date "2023.04.25"]
[WhiteClock "0:00:02"]
[BlackClock "0:00:32"]

1. e4 {[%clk 0:02:58]}  c5 {[%clk 0:02:59]} 2. Nf3 {[%clk 0:02:50]}  d6 {[%clk 0:02:58]} 3. d4 {[%clk 0:02:49]}  cxd4 {[%clk 0:02:59]} 4. Nxd4 {[%clk 0:02:48]}  Nf6 {[%clk 0:02:59]} 5. Nc3 {[%clk 0:02:46]}  a6 {[%clk 0:02:59]} 6. Bg5 {[%clk 0:02:45]}  Nbd7 {[%clk 0:02:58]} 7. f4 {[%clk 0:02:43]}  Qb6 {[%clk 0:02:57]} 8. a3 {[%clk 0:02:17]}  e5 {[%clk 0:02:52]} 9. Nb3 {[%clk 0:01:49]}  Be7 {[%clk 0:02:48]} 10. f5 {[%clk 0:01:30]}  Nxe4 {[%clk 0:02:18]} 11. Nxe4 {[%clk 0:01:08]}  Bxg5 {[%clk 0:02:18]} 12. Nxg5 {[%clk 0:00:41]}  Qe3+ {[%clk 0:02:16]} 13. Be2 {[%clk 0:00:41]}  Qxg5 {[%clk 0:02:17]} 14. Qxd6 {[%clk 0:00:41]}  Qxf5 {[%clk 0:01:46]} 15. O-O-O {[%clk 0:00:33]}  Qg6 {[%clk 0:01:44]} 16. Bf3 {[%clk 0:00:25]}  Qxd6 {[%clk 0:01:43]} 17. Rxd6 {[%clk 0:00:26]}  Ke7 {[%clk 0:01:44]} 18. Rhd1 {[%clk 0:00:21]}  Nf6 {[%clk 0:01:43]} 19. Nc5 {[%clk 0:00:19]}  Rb8 {[%clk 0:01:42]} 20. h3 {[%clk 0:00:16]}  b6 {[%clk 0:01:35]} 21. Na4 {[%clk 0:00:13]}  e4 {[%clk 0:01:11]} 22. Be2 {[%clk 0:00:13]}  Nd7 {[%clk 0:01:07]} 23. Rc6 {[%clk 0:00:13]}  b5 {[%clk 0:01:03]} 24. Nc3 {[%clk 0:00:11]}  f5 {[%clk 0:01:00]} 25. Nd5+ {[%clk 0:00:10]}  Kf7 {[%clk 0:01:00]} 26. Nf4 {[%clk 0:00:05]}  Rb7 {[%clk 0:00:56]} 27. c4 {[%clk 0:00:03]}  Ne5 {[%clk 0:00:54]} 28. Rc5 {[%clk 0:00:02]}  Nxc4 {[%clk 0:00:52]} 29. Bxc4+ {[%clk 0:00:01]}  bxc4 {[%clk 0:00:53]} 30. Rxc4 {[%clk 0:00:02]}  g5 {[%clk 0:00:48]} 31. Nd5 {[%clk 0:00:01]}  Be6 {[%clk 0:00:49]} 32. Rc5 {[%clk 0:00:02]}  Rd8 {[%clk 0:00:47]} 33. Ne3 {[%clk 0:00:01]}  Rxd1+ {[%clk 0:00:46]} 34. Nxd1 {[%clk 0:00:02]}  Kf6 {[%clk 0:00:46]} 35. Nc3 {[%clk 0:00:02]}  Rd7 {[%clk 0:00:44]} 36. Rc6 {[%clk 0:00:03]}  Ke5 {[%clk 0:00:44]} 37. Rxa6 {[%clk 0:00:03]}  e3 {[%clk 0:00:44]} 38. Ra5+ {[%clk 0:00:02]}  Kf4 {[%clk 0:00:43]} 39. Ne2+ {[%clk 0:00:02]}  Ke4 {[%clk 0:00:43]} 40. Ra4+ {[%clk 0:00:01]}  Kd3 {[%clk 0:00:41]} 41. Nc3 {[%clk 0:00:02]}  e2 {[%clk 0:00:32]} 0-1


[Site "https://www.chess.com"]